bitfinex/quotes_SOLUSD_20251116
["timestamp","ask_amount","ask_price","bid_price","bid_amount"]
[1763307580232,0.66,139.86,139.83,2.63713983]
[1763307581034,7.15051841,139.85,139.83,1.91713983]
[1763307581223,7.15051841,139.85,139.83,2.63713983]
[1763307584544,7.15051841,139.85,139.84,1.91713983]
[1763307584768,7.81020242,139.86,139.84,1.91713983]
[1763307585124,7.15020242,139.86,139.84,1.91713983]
[1763307585452,7.83020242,139.86,139.84,1.91713983]
[1763307587232,7.14949596,139.87,139.84,1.91713983]
[1763307587433,0.68,139.85,139.84,1.91713983]
[1763307588437,0.68,139.85,139.83,2.63713983]
[1763307589631,7.83036187,139.86,139.83,2.63713983]
[1763307590333,136.374671,139.88,139.84,2.60713983]
[1763307590537,137.054671,139.88,139.84,2.60713983]
[1763307590942,0.68,139.87,139.84,2.60713983]
[1763307591447,7.82994585,139.87,139.84,2.60713983]
[1763307591645,0.68,139.86,139.84,2.60713983]
[1763307591855,0.68,139.86,139.84,1.91713983]
[1763307593660,7.83027029,139.86,139.84,1.91713983]
[1763307593863,7.83027029,139.86,139.82,7.15168922]
[1763307594061,0.68,139.85,139.84,1.91713983]
[1763307594362,7.83027029,139.86,139.84,1.91713983]
[1763307595766,7.82963434,139.87,139.84,2.60713983]
[1763307596257,7.14963434,139.87,139.84,1.91713983]
[1763307596463,0.68,139.86,139.84,1.91713983]
[1763307599075,7.83008445,139.86,139.84,1.91713983]
[1763307600547,7.15196846,139.89,139.85,0.69]
[1763307600874,7.15196846,139.89,139.86,1.91713983]
[1763307600875,0.68,139.89,139.86,1.91713983]
[1763307601054,0.68,139.89,139.86,2.60713983]
[1763307601769,0.68,139.89,139.86,1.91713983]
[1763307602288,7.82873469,139.89,139.86,1.91713983]
[1763307602775,0.68,139.88,139.85,9.75758937]
[1763307603155,0.68,139.88,139.85,2.60713983]
[1763307605880,7.8290591,139.88,139.85,2.60713983]
[1763307606882,7.8290591,139.88,139.85,3.68577785]
[1763307608682,7.8290591,139.88,139.86,2.99577785]
[1763307609976,0.68,139.87,139.84,2.99577785]
[1763307610170,7.15000715,139.86,139.83,2.99577785]
[1763307610588,0.68,139.85,139.83,2.99577785]
[1763307611082,20.86823996,139.88,139.84,3.68577785]
[1763307611083,7.14966146,139.87,139.84,3.68577785]
[1763307611261,0.68,139.88,139.85,2.99577785]
[1763307611460,0.68,139.88,139.86,2.99577785]
[1763307612258,7.82909441,139.88,139.86,2.99577785]
[1763307612462,7.82909441,139.88,139.85,3.68577785]
[1763307615481,7.1486132,139.89,139.85,10.14628387]
[1763307615690,7.8286132,139.89,139.86,3.67577785]
[1763307616704,7.82817917,139.9,139.87,3.67577785]
[1763307616865,104.2,139.91,139.87,3.67577785]
[1763307616866,104.2,139.91,139.89,2.99577785]
[1763307617066,8.02710609,139.92,139.89,2.99577785]
[1763307617265,8.02710609,139.92,139.89,3.67577785]
[1763307617466,8.02710609,139.92,139.9,2.99577785]
[1763307617770,7.34710609,139.92,139.9,2.99577785]
[1763307617962,0.2,139.92,139.91,2.99577785]
[1763307618188,0.2,139.92,139.91,3.67577785]
[1763307618490,0.2,139.92,139.91,2.99577785]
[1763307618674,0.88,139.92,139.91,2.99577785]
[1763307618872,0.2,139.92,139.91,2.99577785]
[1763307619190,8.02701092,139.92,139.88,7.82877598]
[1763307619372,8.02701092,139.92,139.89,2.99577785]
[1763307619569,0.68,139.91,139.89,2.99577785]
[1763307619879,0.68,139.91,139.87,2.99577785]
[1763307619880,10.82370368,139.91,139.87,2.99577785]
[1763307620076,0.68,139.9,139.86,2.99577785]
[1763307620667,0.68,139.9,139.87,2.99577785]
[1763307620871,0.68,139.9,139.88,2.99577785]
[1763307621487,0.2,139.92,139.89,3.67577785]
[1763307621707,0.2,139.92,139.9,2.99577785]
[1763307622071,0.2,139.92,139.91,2.99577785]
[1763307626882,0.2,139.92,139.91,10.82322978]
[1763307629696,0.2,139.92,139.91,2.99577785]
[1763307630610,0.2,139.95,139.92,0.45]
[1763307630780,0.2,139.95,139.94,2.99577785]
[1763307631178,0.2,139.95,139.94,3.44577785]
[1763307632101,0.2,139.95,139.94,10.59169752]
[1763307632679,0.2,139.95,139.94,2.99577785]
[1763307632880,0.2,139.95,139.9,17.86932607]
[1763307632881,0.88,139.95,139.9,17.86932607]
[1763307633078,0.88,139.95,139.89,0.45]
[1763307633079,2.99577785,139.93,139.89,2.99577785]
[1763307633279,2.99577785,139.92,139.87,2.99577785]
[1763307633484,0.68,139.91,139.87,2.99577785]
[1763307633686,0.68,139.91,139.88,2.99577785]
[1763307634301,7.82765265,139.91,139.88,2.99577785]
[1763307634801,0.68,139.9,139.88,2.99577785]
[1763307635681,0.68,139.9,139.89,2.99577785]
[1763307636984,7.82800624,139.9,139.88,2.99577785]
[1763307637395,0.68,139.89,139.88,2.99577785]
[1763307638010,7.14763226,139.91,139.88,2.99577785]
[1763307638194,0.68,139.9,139.89,2.99577785]
[1763307638915,0.68,139.9,139.88,2.99577785]
[1763307640830,0.68,139.9,139.89,2.99577785]
[1763307641118,104.2,139.94,139.89,2.99577785]
[1763307641119,0.68,139.91,139.89,2.99577785]
[1763307641317,0.68,139.91,139.88,7.14873288]
[1763307641495,0.68,139.91,139.9,2.99577785]
[1763307641933,0.68,139.91,139.89,2.99577785]
[1763307643418,0.68,139.91,139.9,2.99577785]
[1763307644708,7.82745193,139.91,139.88,2.99577785]
[1763307645100,0.67,139.9,139.88,2.99577785]
[1763307645603,0.67,139.9,139.87,2.99577785]
[1763307646127,0.67,139.9,139.85,22.6512]
[1763307646422,0.67,139.9,139.88,2.99577785]
[1763307647007,7.8182679,139.9,139.88,2.99577785]
[1763307647796,0.67,139.89,139.88,2.99577785]
[1763307647999,0.67,139.89,139.84,7.15094456]
[1763307648198,0.67,139.89,139.87,2.99577785]
[1763307648427,7.1482679,139.9,139.87,2.99577785]
[1763307648611,0.67,139.9,139.89,2.99577785]
[1763307648816,28.01025744,139.92,139.87,2.99577785]
[1763307649323,0.67,139.91,139.87,2.99577785]
[1763307649520,3.66577785,139.91,139.86,2.99577785]
[1763307650023,0.67,139.9,139.86,2.99577785]
[1763307650222,0.67,139.9,139.87,2.99577785]
[1763307651129,7.1484738,139.89,139.87,2.99577785]
[1763307651517,0.67,139.88,139.87,2.99577785]
[1763307653332,104.2,139.9,139.87,2.99577785]
[1763307653333,112.01806207,139.9,139.87,2.99577785]
[1763307653630,112.01806207,139.9,139.88,2.99577785]
[1763307653843,0.67,139.89,139.88,2.99577785]
[1763307656135,0.67,139.89,139.85,30.25155175]
[1763307656333,7.8184738,139.89,139.87,2.99577785]
[1763307656714,0.67,139.88,139.87,2.99577785]
[1763307657717,7.1484738,139.89,139.87,2.99577785]
[1763307657927,7.8184738,139.89,139.87,2.99577785]
[1763307658125,0.67,139.88,139.87,2.99577785]
[1763307659336,7.81898484,139.88,139.85,22.6512]
[1763307659537,7.81898484,139.88,139.85,2.99577785]
[1763307659738,0.67,139.87,139.85,2.99577785]
[1763307661343,0.67,139.87,139.86,2.99577785]
[1763307662542,7.81949596,139.87,139.85,2.99577785]
[1763307662744,7.81949596,139.87,139.84,2.99577785]
[1763307662935,0.67,139.86,139.84,2.99577785]
[1763307663822,0.67,139.86,139.85,2.99577785]
[1763307665141,28.69080287,139.86,139.78,7.15409929]
[1763307665342,28.69080287,139.86,139.81,2.99577785]
[1763307665639,3.66577785,139.85,139.8,2.99577785]
[1763307665838,7.15154115,139.83,139.79,2.99577785]
[1763307666221,0.67,139.82,139.79,2.99577785]
[1763307667636,0.67,139.82,139.8,2.99577785]
[1763307668043,0.67,139.82,139.81,2.99577785]
[1763307668819,0.67,139.82,139.81,1.91867174]
[1763307670046,0.67,139.85,139.81,1.91867174]
[1763307670263,0.67,139.87,139.84,1.91867174]
[1763307670467,0.67,139.87,139.86,1.91867174]
[1763307671347,0.67,139.89,139.86,1.91867174]
[1763307671658,0.67,139.88,139.86,1.91867174]
[1763307673366,7.81939783,139.88,139.85,1.91867174]
[1763307673830,0.72,139.87,139.85,1.91867174]
[1763307675334,0.72,139.87,139.86,1.91867174]
[1763307681049,0.71,139.9,139.86,2.36867174]
[1763307681351,0.71,139.92,139.89,1.91867174]
[1763307681552,0.71,139.92,139.87,0.45]
[1763307681553,0.71,139.92,139.91,1.91867174]
[1763307682054,0.91,139.95,139.91,1.91867174]
[1763307682254,0.91,139.95,139.94,1.91867174]
[1763307682833,0.2,139.95,139.94,1.91867174]
[1763307683946,0.2,139.95,139.94,9.06459141]
[1763307684853,0.2,139.95,139.94,9.51459141]
[1763307686063,0.2,139.95,139.94,1.91867174]
[1763307686247,0.2,139.95,139.94,2.36867174]
[1763307686561,0.2,139.95,139.94,9.51459141]
[1763307688049,0.2,139.95,139.94,7.59591967]
[1763307688252,0.2,139.95,139.94,9.51459141]
[1763307689471,0.2,139.95,139.94,1.91867174]
[1763307690454,0.2,139.95,139.94,31.71579141]
[1763307690657,0.2,139.95,139.94,1.91867174]
[1763307690840,0.91,139.95,139.94,1.91867174]
[1763307697276,8.05545401,139.95,139.91,22.6512]
[1763307697568,0.71,139.94,139.91,0.45]
[1763307697946,0.71,139.94,139.93,1.91867174]
[1763307698152,0.71,139.94,139.9,22.6512]
[1763307698153,0.71,139.94,139.92,1.91867174]
[1763307698372,0.71,139.94,139.87,0.45]
[1763307698571,2.62867174,139.94,139.89,1.91867174]
[1763307698742,1.91867174,139.93,139.88,1.91867174]
[1763307698951,2.62867174,139.93,139.88,1.91867174]
[1763307699158,0.71,139.92,139.88,1.91867174]
[1763307699578,7.85732059,139.92,139.89,1.91867174]
[1763307700953,0.71,139.91,139.89,1.91867174]
[1763307701356,0.71,139.91,139.9,1.91867174]
[1763307702264,0.2,139.95,139.9,2.36867174]
[1763307702452,0.71,139.94,139.92,1.91867174]
[1763307702657,0.71,139.94,139.89,7.59827512]
[1763307702858,0.71,139.94,139.92,1.91867174]
[1763307703754,7.14643035,139.93,139.92,1.91867174]
[1763307704379,7.84643035,139.93,139.92,1.91867174]
[1763307704582,7.84643035,139.93,139.91,1.91867174]
[1763307704755,0.7,139.92,139.91,1.91867174]
[1763307705880,0.7,139.94,139.91,1.91867174]
[1763307706091,0.7,139.94,139.92,1.91867174]
[1763307706970,0.7,139.94,139.91,1.91867174]
[1763307707979,7.84591967,139.94,139.93,1.91867174]
[1763307708293,7.84591967,139.94,139.92,1.91867174]
[1763307708588,0.7,139.93,139.92,1.91867174]
[1763307709158,0.7,139.93,139.9,7.1475173]
[1763307709159,0.7,139.93,139.91,1.91867174]
[1763307709767,0.7,139.93,139.92,1.91867174]
[1763307716361,0.7,139.93,139.91,1.91867174]
[1763307720795,0.7,139.93,139.9,1.91867174]
[1763307720796,7.84665793,139.93,139.9,1.91867174]
[1763307720981,7.84665793,139.93,139.91,1.91867174]
[1763307721171,0.7,139.92,139.91,1.91867174]
[1763307724807,7.8469411,139.92,139.89,1.91867174]
[1763307725299,0.7,139.91,139.89,1.91867174]
[1763307725483,59.37656933,139.9,139.81,0.68]
[1763307725691,1.91867174,139.84,139.8,0.68]
[1763307725883,9.78882769,139.85,139.8,0.68]
[1763307726072,0.7,139.84,139.8,2.59867174]
[1763307726500,1.91867174,139.85,139.81,0.68]
[1763307726806,2.61867174,139.85,139.81,0.68]
[1763307728408,7.15102974,139.84,139.81,0.68]
[1763307728807,7.85102974,139.84,139.81,0.68]
[1763307729118,10.48882769,139.83,139.79,2.59867174]
[1763307729414,12.40749943,139.83,139.78,2.59867174]
[1763307729712,0.7,139.82,139.78,2.59867174]
[1763307730198,7.15256419,139.81,139.78,2.59867174]
[1763307730681,7.15218604,139.82,139.78,2.59867174]
[1763307730882,7.85218604,139.82,139.78,3.67908295]
[1763307731797,10.15126899,139.82,139.78,0.68]
[1763307732005,0.7,139.81,139.78,0.68]
[1763307732305,7.85268646,139.81,139.78,0.68]
[1763307732778,7.85268646,139.81,139.77,3.77908295]
[1763307733696,0.7,139.81,139.77,3.09908295]
[1763307733902,22.6512,139.86,139.79,2.99908295]
[1763307734104,22.6512,139.86,139.8,2.99908295]
[1763307734105,9.78882769,139.84,139.8,2.99908295]
[1763307734583,10.49882769,139.84,139.81,0.67]
[1763307735085,10.49882769,139.84,139.8,3.66908295]
[1763307735396,10.49882769,139.84,139.8,3.71908295]
[1763307735997,17.65030011,139.84,139.8,3.71908295]
[1763307736797,0.67,139.83,139.79,2.99908295]
[1763307737012,9.78882769,139.79,139.77,0.1]
[1763307737301,28.04639456,139.83,139.77,0.1]
[1763307737302,12.78791064,139.78,139.77,0.1]
[1763307737720,13.45791064,139.78,139.77,0.1]
[1763307738095,20.61200993,139.78,139.77,0.1]
[1763307740209,9.78882769,139.78,139.77,0.82]
[1763307740503,16.94247218,139.79,139.77,0.1]
[1763307741307,17.61247218,139.79,139.77,0.1]
[1763307741712,20.61155513,139.79,139.77,0.1]
[1763307743009,20.61155513,139.79,139.75,2.91908295]
[1763307743201,0.67,139.79,139.75,10.07455004]
[1763307743403,9.78882769,139.8,139.77,2.99908295]
[1763307743713,10.45882769,139.8,139.77,2.99908295]
[1763307744405,10.45882769,139.8,139.74,17.88965173]
[1763307744611,10.45882769,139.8,139.76,2.99908295]
[1763307745208,10.45882769,139.8,139.76,3.71908295]
[1763307746310,0.67,139.79,139.76,2.99908295]
[1763307747717,7.82373323,139.79,139.76,3.71908295]
[1763307748102,7.82373323,139.79,139.76,2.99908295]
[1763307752115,7.82373323,139.79,139.76,3.71908295]
[1763307752836,3.66908295,139.81,139.77,3.71908295]
[1763307753020,0.67,139.81,139.77,3.71908295]
[1763307753335,0.67,139.8,139.77,3.71908295]
[1763307754202,7.82312384,139.8,139.77,3.71908295]
[1763307754429,7.15263931,139.81,139.77,10.15357011]
[1763307754635,17.61088281,139.82,139.78,3.71908295]
[1763307755112,17.61088281,139.82,139.79,3.71908295]
[1763307756529,17.61088281,139.82,139.79,2.99908295]
[1763307757122,10.45882769,139.82,139.79,2.99908295]
[1763307757509,17.61111716,139.82,139.79,2.99908295]
[1763307759650,17.61111716,139.82,139.78,3.71908295]
[1763307760233,17.61111716,139.82,139.78,10.87311345]
[1763307760528,17.61111716,139.82,139.78,3.71908295]
[1763307761033,3.66908295,139.81,139.77,2.99908295]
[1763307761220,3.66908295,139.81,139.76,10.87413884]
[1763307761420,0.67,139.8,139.76,10.87413884]
[1763307761619,7.82311488,139.8,139.76,10.87413884]
[1763307761835,7.82311488,139.8,139.77,3.71908295]
[1763307762537,7.82311488,139.8,139.77,0.72]
[1763307762839,7.15259501,139.81,139.77,3.71908295]
[1763307763018,0.67,139.8,139.77,3.71908295]
[1763307763819,7.82309136,139.8,139.77,3.71908295]
[1763307764943,0.67,139.8,139.78,2.99908295]
[1763307765233,7.82308726,139.8,139.77,3.71908295]
[1763307766740,0.67,139.8,139.77,10.87360968]
[1763307769840,0.67,139.8,139.77,3.71908295]
[1763307770141,7.823174,139.8,139.77,3.71908295]
[1763307774655,0.67,139.8,139.77,10.87365438]
[1763307778052,7.82312502,139.8,139.77,10.87365438]
[1763307778256,0.66,139.79,139.77,2.99908295]
[1763307778559,7.15312502,139.8,139.77,3.69908295]
[1763307778560,7.81312502,139.8,139.77,3.69908295]
[1763307778932,7.15312502,139.8,139.77,3.69908295]
[1763307779131,0.66,139.8,139.77,10.85328224]
[1763307781657,5.40699314,139.8,139.77,10.85328224]
[1763307781968,11.90008261,139.8,139.77,10.85328224]
[1763307782262,5.40699314,139.79,139.77,10.85328224]
[1763307782457,4.74699314,139.79,139.77,10.85328224]
[1763307782769,5.40699314,139.79,139.77,10.15328224]
[1763307783057,7.15266092,139.81,139.77,10.15328224]
[1763307783058,5.40699314,139.8,139.77,10.85328224]
[1763307788869,4.74699314,139.81,139.79,2.99908295]
[1763307789058,4.77865493,139.83,139.8,3.69908295]
[1763307789549,0.66,139.83,139.8,3.69908295]
[1763307789958,5.43865493,139.83,139.8,3.69908295]
[1763307790368,0.66,139.83,139.8,3.69908295]
[1763307790546,11.93012165,139.84,139.79,7.15317927]
[1763307790735,0.66,139.82,139.78,2.99908295]
[1763307790934,9.78882769,139.81,139.77,3.69908295]
[1763307791139,3.65908295,139.8,139.76,3.69908295]
[1763307791335,0.66,139.79,139.76,3.69908295]
[1763307791558,0.66,139.79,139.77,0.7]
[1763307792160,7.81364317,139.79,139.75,10.85450161]
[1763307792365,0.66,139.78,139.75,10.85450161]
[1763307792866,0.66,139.78,139.75,9.77559407]
[1763307793746,13.84621201,139.8,139.76,7.81511137]
[1763307793944,4.77276058,139.8,139.78,1.92017541]
[1763307794168,5.45276058,139.81,139.78,2.58017541]
[1763307795172,12.60551502,139.81,139.78,2.58017541]
[1763307796063,5.45276058,139.81,139.78,9.73413797]
[1763307796963,5.45276058,139.81,139.79,0.68]
[1763307797450,12.60540587,139.81,139.78,1.92017541]
[1763307797659,0.69,139.8,139.78,1.92017541]
[1763307798781,12.61540587,139.81,139.78,2.60017541]
[1763307799083,5.46276058,139.81,139.78,9.75425223]
[1763307799586,4.77276058,139.81,139.79,0.68]
[1763307800078,4.77276058,139.81,139.79,2.60017541]
[1763307800281,4.77276058,139.81,139.78,7.15407682]
[1763307800282,14.56158827,139.82,139.8,2.60017541]
[1763307800469,15.25158827,139.82,139.8,2.60017541]
[1763307800664,15.25158827,139.82,139.8,1.92017541]
[1763307802378,15.25158827,139.82,139.79,7.83356926]
[1763307802571,15.25158827,139.82,139.8,1.92017541]
[1763307802886,4.77276058,139.82,139.8,1.92017541]
[1763307803177,5.46276058,139.84,139.81,1.92017541]
[1763307803386,0.69,139.83,139.8,2.60017541]
[1763307803787,0.69,139.83,139.8,9.75318478]
[1763307803992,4.77276058,139.84,139.82,1.92017541]
[1763307804174,9.78882769,139.85,139.82,2.60017541]
[1763307804378,10.47882769,139.85,139.82,0.68]
[1763307804580,15.25158827,139.85,139.82,2.60017541]
[1763307804961,22.40216976,139.85,139.82,2.60017541]
[1763307805176,17.62940918,139.85,139.82,2.60017541]
[1763307805599,5.45964644,139.84,139.82,1.92017541]
[1763307805905,0.69,139.84,139.82,1.92017541]
[1763307806595,0.69,139.84,139.82,2.60017541]
[1763307806797,17.62940918,139.85,139.82,2.60017541]
[1763307809200,0.69,139.84,139.82,1.92017541]
[1763307809497,0.69,139.84,139.83,1.92017541]
[1763307810604,16.93940918,139.89,139.83,2.60017541]
[1763307810605,7.14881518,139.89,139.83,2.60017541]
[1763307810801,10.47882769,139.88,139.83,0.68]
[1763307811097,0.69,139.88,139.86,1.92017541]
[1763307811307,7.14881518,139.89,139.86,1.92017541]
[1763307811308,0.69,139.87,139.86,1.92017541]
[1763307812705,0.69,139.87,139.81,7.94962609]
[1763307812883,1.92017541,139.85,139.81,9.8698015]
[1763307813083,18.86040119,139.84,139.79,1.92017541]
[1763307813584,0.69,139.83,139.81,1.92017541]
[1763307815308,29.80128157,139.86,139.82,1.92017541]
[1763307815499,10.47882769,139.85,139.79,7.83348764]
[1763307815701,10.47882769,139.85,139.81,1.92017541]
[1763307815897,0.69,139.84,139.82,1.92017541]
[1763307816912,7.84103098,139.84,139.82,1.92017541]
[1763307817294,7.84103098,139.84,139.81,1.92017541]
[1763307817489,16.93951741,139.85,139.82,1.92017541]
[1763307817712,0.69,139.84,139.82,1.92017541]
[1763307818692,7.84116702,139.84,139.81,1.92017541]
[1763307819201,0.69,139.83,139.81,1.92017541]
[1763307820414,7.84163758,139.83,139.8,1.92017541]
[1763307820621,0.69,139.82,139.79,1.92017541]
[1763307825313,0.69,139.82,139.8,1.92017541]
[1763307830034,7.84207026,139.82,139.79,1.92017541]
[1763307830447,0.7,139.81,139.79,1.92017541]
[1763307831648,0.7,139.81,139.78,1.92017541]
[1763307833549,0.7,139.81,139.78,9.07406457]
[1763307833719,0.7,139.81,139.78,9.77406457]
[1763307833920,0.7,139.81,139.79,1.92017541]
[1763307834845,0.7,139.81,139.78,9.07406457]
[1763307835142,7.85263715,139.81,139.78,9.07406457]
[1763307835539,0.7,139.8,139.78,9.07406457]
[1763307839734,9.7733956,139.8,139.75,1.92017541]
[1763307839933,9.7733956,139.8,139.74,0.7]
[1763307839934,11.7090031,139.79,139.73,0.8]
[1763307840146,1.92017541,139.78,139.73,2.02017541]
[1763307840353,2.62017541,139.78,139.73,2.02017541]
[1763307840520,0.7,139.77,139.73,9.17649702]
[1763307840924,0.7,139.77,139.74,1.92017541]
[1763307841244,9.77526723,139.77,139.73,0.1]
[1763307841433,9.77526723,139.77,139.73,2.02017541]
[1763307841634,0.7,139.76,139.73,2.02017541]
[1763307842237,0.7,139.76,139.73,2.72017541]
[1763307842459,0.7,139.76,139.73,2.02017541]
[1763307843850,9.78882769,139.79,139.75,1.92017541]
[1763307844050,9.78882769,139.77,139.73,2.02017541]
[1763307844229,11.7090031,139.77,139.73,2.02017541]
[1763307844433,0.7,139.76,139.73,2.02017541]
[1763307844640,0.7,139.76,139.73,0.1]
[1763307844838,0.7,139.76,139.73,2.02017541]
[1763307845249,9.78882769,139.75,139.73,0.1]
[1763307845457,7.15614713,139.74,139.73,0.1]
[1763307846053,7.85614713,139.74,139.73,0.1]
[1763307846368,17.64497482,139.74,139.73,0.1]
[1763307846553,12.4090031,139.73,139.7,0.1]
[1763307846852,11.7090031,139.71,139.7,0.1]
[1763307847258,12.4090031,139.71,139.7,0.1]
[1763307847635,19.56668687,139.71,139.7,0.1]
[1763307847830,12.4090031,139.71,139.7,0.1]
[1763307848066,2.86851446,139.74,139.7,2.72017541]
[1763307848234,0.7,139.75,139.73,1.92017541]
[1763307848435,0.7,139.75,139.72,1.92017541]
[1763307848436,10.48882769,139.75,139.72,1.92017541]
[1763307848936,0.7,139.74,139.72,1.92017541]
[1763307850261,7.85621874,139.74,139.7,2.02017541]
[1763307850469,9.77639415,139.74,139.7,2.02017541]
[1763307850647,0.7,139.73,139.7,2.02017541]
[1763307851950,7.85667041,139.73,139.7,2.02017541]
[1763307852256,7.15667041,139.73,139.7,2.02017541]
[1763307852444,0.7,139.72,139.7,2.02017541]
[1763307852848,0.7,139.72,139.7,3.10241355]
[1763307853436,0.65,139.72,139.7,0.1]
[1763307854549,7.15768377,139.71,139.7,0.1]
[1763307854943,7.85768377,139.71,139.7,0.1]
[1763307859965,17.64651146,139.71,139.7,0.1]
[1763307864078,0.7,139.71,139.7,0.1]
[1763307864371,111.35718071,139.72,139.7,3.80241355]
[1763307864962,112.05718071,139.72,139.7,3.80241355]
[1763307865358,104.9,139.72,139.7,3.80241355]
[1763307866166,104.9,139.72,139.7,3.10241355]
[1763307866474,112.05720051,139.72,139.7,0.1]
[1763307867563,112.05720051,139.72,139.7,3.10241355]
[1763307868664,104.2,139.72,139.7,3.10241355]
[1763307868869,104.2,139.72,139.7,3.80241355]
[1763307869156,104.2,139.72,139.71,3.00241355]
[1763307870076,104.2,139.72,139.7,3.80241355]
[1763307870278,0.7,139.73,139.71,3.00241355]
[1763307870488,0.7,139.73,139.71,3.70241355]
[1763307870861,0.7,139.73,139.71,3.00241355]
[1763307871571,7.85666886,139.73,139.7,10.96043739]
[1763307872295,7.85666886,139.73,139.7,3.10241355]
[1763307872582,0.7,139.72,139.7,0.1]
[1763307874468,0.7,139.72,139.7,0.8]
[1763307875059,0.7,139.72,139.7,3.80241355]
[1763307878092,0.7,139.72,139.7,10.96045467]
[1763307878264,0.7,139.72,139.7,3.80241355]
[1763307882090,104.2,139.73,139.7,10.2605496]
[1763307882288,104.2,139.73,139.71,0.7]
[1763307882472,104.9,139.73,139.71,0.7]
[1763307882666,104.9,139.73,139.7,10.9605496]
[1763307884902,104.2,139.73,139.72,3.00241355]
[1763307885403,104.2,139.73,139.72,3.68241355]
[1763307886478,104.2,139.73,139.72,10.83958503]
[1763307887098,0.72,139.76,139.72,10.83958503]
[1763307887407,0.72,139.76,139.74,3.00241355]
[1763307890491,7.87513014,139.76,139.74,3.00241355]
[1763307891214,0.72,139.75,139.73,10.15891445]
[1763307891575,7.87513014,139.76,139.73,10.83891445]
[1763307892872,0.72,139.76,139.73,10.83891445]
[1763307893679,0.72,139.76,139.74,3.00241355]
[1763307894178,7.87536396,139.76,139.73,3.00241355]
[1763307894604,0.72,139.75,139.72,3.00241355]
[1763307895103,0.72,139.75,139.72,3.68241355]
[1763307896307,0.72,139.75,139.72,10.83955062]
[1763307899006,0.72,139.75,139.72,3.68241355]
[1763307900203,0.72,139.75,139.72,10.83957589]
[1763307900400,9.78882769,139.74,139.7,0.1]
[1763307900701,12.79124124,139.71,139.7,0.1]
[1763307900999,36.16244124,139.71,139.7,0.1]
[1763307901203,9.78882769,139.7,139.69,0.1]
[1763307901389,18.27486906,139.7,139.69,0.1]
[1763307902301,25.43306519,139.7,139.69,0.1]
[1763307904006,20.66943737,139.7,139.69,0.1]
[1763307905496,25.42307875,139.7,139.69,0.1]
[1763307906282,20.66943737,139.7,139.69,0.1]
[1763307908885,16.94702382,139.7,139.69,0.1]
[1763307909492,17.66702382,139.7,139.69,0.1]
[1763307910392,10.50882769,139.7,139.69,0.1]
[1763307911011,17.66702382,139.7,139.69,0.1]
[1763307911711,16.94702382,139.7,139.69,0.1]
[1763307912010,17.66702382,139.7,139.69,0.1]
[1763307912389,10.50882769,139.7,139.69,0.1]
[1763307913212,17.66702382,139.7,139.69,0.1]
[1763307913810,10.50882769,139.7,139.69,0.1]
[1763307914114,9.78882769,139.7,139.69,0.1]
[1763307915197,111.35787703,139.71,139.69,2.7123086]
[1763307916520,111.35787703,139.71,139.69,0.79]
[1763307917022,112.06787703,139.71,139.69,0.79]
[1763307917718,112.06787703,139.71,139.69,0.1]
[1763307918997,12.42113629,139.7,139.69,0.1]
[1763307919799,19.57933242,139.7,139.69,0.1]
[1763307919994,17.65702382,139.7,139.69,0.1]
[1763307920221,19.57933242,139.7,139.69,0.1]
[1763307924306,42.23053242,139.7,139.69,0.1]
[1763307927140,40.30822382,139.7,139.69,0.1]
[1763307927319,42.23053242,139.7,139.69,0.1]
[1763307928435,39.59822382,139.7,139.69,0.79]
[1763307928933,39.59822382,139.7,139.69,0.1]
[1763307931542,40.30822382,139.7,139.69,0.1]
[1763307932741,39.59822382,139.7,139.69,0.1]
[1763307932944,32.44002769,139.72,139.69,0.79]
[1763307933437,40.30767453,139.72,139.69,0.79]
[1763307934644,39.59767453,139.72,139.69,2.7123086]
[1763307934936,39.59767453,139.72,139.7,1.9223086]
[1763307934937,16.94601762,139.72,139.7,1.9223086]
[1763307935148,16.94601762,139.72,139.7,2.6123086]
[1763307936460,7.15680381,139.73,139.71,2.6123086]
[1763307937023,52.96164761,139.75,139.72,0.69]